bitfinex/quotes_BTCUSD_20251004
["timestamp","ask_amount","ask_price","bid_price","bid_amount"]
[1759559843768,0.55693217,122520.0,122510.0,0.06261637]
[1759559843967,0.55693217,122520.0,122510.0,0.37733637]
[1759559844304,0.55694429,122520.0,122510.0,0.37733637]
[1759559845275,0.55694429,122520.0,122510.0,0.29249637]
[1759559845483,0.55694429,122520.0,122510.0,0.37733637]
[1759559848794,0.55694429,122520.0,122510.0,0.06261637]
[1759559849003,0.55694429,122520.0,122510.0,0.37729637]
[1759559849225,0.55694429,122520.0,122510.0,0.06261637]
[1759559849425,0.55694429,122520.0,122510.0,0.37729637]
[1759559851803,0.55694429,122520.0,122510.0,0.06261637]
[1759559851998,0.55694429,122520.0,122510.0,0.37729637]
[1759559852653,0.55694429,122520.0,122510.0,0.06261637]
[1759559852854,0.55694429,122520.0,122510.0,0.37729637]
[1759559864312,0.08312206,122520.0,122510.0,0.38244637]
[1759559864536,0.09942606,122520.0,122510.0,0.38244637]
[1759559864757,0.08312206,122520.0,122510.0,0.54569834]
[1759559870493,0.08312206,122520.0,122510.0,0.60429057]
[1759559871594,0.08312206,122520.0,122510.0,0.13468297]
[1759559872868,0.08312206,122520.0,122510.0,0.36452297]
[1759559873283,8.003e-05,122530.0,122510.0,0.36452297]
[1759559873485,0.08320209,122530.0,122520.0,0.17956251]
[1759559873714,0.08320209,122530.0,122520.0,0.16323865]
[1759559874473,0.08520209,122530.0,122520.0,0.16323865]
[1759559874682,0.08320209,122530.0,122520.0,0.16323865]
[1759559875082,0.08820209,122530.0,122520.0,0.16323865]
[1759559875487,0.09220209,122530.0,122520.0,0.16323865]
[1759559876329,0.08820209,122530.0,122520.0,0.16323865]
[1759559876754,0.09420209,122530.0,122520.0,0.16323865]
[1759559876949,0.09420209,122530.0,122510.0,0.1084352]
[1759559877172,0.09420209,122530.0,122520.0,0.33096386]
[1759559877375,0.09420209,122530.0,122520.0,0.31464]
[1759559877797,0.08920209,122530.0,122520.0,0.3146]
[1759559878232,0.08520209,122530.0,122520.0,0.3146]
[1759559878435,0.08320209,122530.0,122520.0,0.3146]
[1759559878683,0.08720209,122530.0,122520.0,0.3146]
[1759559878905,0.09220209,122530.0,122510.0,0.1084352]
[1759559879146,0.08840526,122530.0,122520.0,0.33092386]
[1759559879353,0.08840526,122530.0,122520.0,0.3146]
[1759559879572,0.09440526,122530.0,122520.0,0.3146]
[1759559881657,0.09440526,122530.0,122520.0,0.37319223]
[1759559882130,0.09440526,122530.0,122520.0,0.53643088]
[1759559883204,0.09440526,122530.0,122520.0,0.56092246]
[1759559883353,0.0112832,122530.0,122520.0,0.56092246]
[1759559884403,0.0062832,122530.0,122520.0,0.56092246]
[1759559884617,0.0082832,122530.0,122520.0,0.50233023]
[1759559885080,0.0022832,122530.0,122520.0,0.50233023]
[1759559885274,0.0062832,122530.0,122520.0,0.50233023]
[1759559887521,0.0062832,122530.0,122520.0,0.18773023]
[1759559888003,0.0062832,122530.0,122520.0,0.84165023]
[1759559888550,0.0062832,122530.0,122520.0,0.90017164]
[1759559888761,0.0062832,122530.0,122520.0,0.84165023]
[1759559890854,0.0062832,122530.0,122520.0,1.18165023]
[1759559891024,0.0062832,122530.0,122520.0,1.25496674]
[1759559895756,0.0062832,122530.0,122520.0,1.17012674]
[1759559895969,0.0062832,122530.0,122520.0,1.25492674]
[1759559897342,0.0062832,122530.0,122520.0,0.60104674]
[1759559897669,0.0083432,122530.0,122520.0,1.25488674]
[1759559897895,0.0115532,122530.0,122520.0,0.60104674]
[1759559898102,0.0115532,122530.0,122520.0,1.25488674]
[1759559898306,0.0083432,122530.0,122520.0,1.25488674]
[1759559898526,0.0083432,122530.0,122520.0,0.60104674]
[1759559898839,0.0083432,122530.0,122520.0,1.25488674]
[1759559899190,0.0062832,122530.0,122520.0,1.25488674]
[1759559911764,0.0062832,122530.0,122520.0,1.18157023]
[1759559912600,0.00116821,122530.0,122520.0,1.18157023]
[1759559912813,0.00116821,122530.0,122520.0,1.25490846]
[1759559922069,0.08921027,122530.0,122520.0,0.60106846]
[1759559922274,0.2524356,122530.0,122520.0,0.09782981]
[1759559922483,0.2524356,122530.0,122520.0,0.25588]
[1759559922889,0.2524356,122530.0,122520.0,0.32921823]
[1759559923538,0.2524356,122530.0,122520.0,0.25588]
[1759559924195,0.2524356,122530.0,122510.0,0.09837823]
[1759559924398,0.08605206,122520.0,122510.0,0.43765823]
[1759559924599,0.08804206,122520.0,122510.0,0.75221823]
[1759559925208,0.08804206,122520.0,122510.0,0.9154702]
[1759559926712,0.08804206,122520.0,122510.0,0.07688429]
[1759559926713,0.26758471,122520.0,122510.0,0.07688429]
[1759559926910,0.25128071,122520.0,122510.0,0.39144429]
[1759559927115,0.25128071,122520.0,122510.0,0.31810606]
[1759559929142,0.25128071,122520.0,122510.0,0.31818606]
[1759559930022,0.24636071,122520.0,122510.0,0.31818606]
[1759559930580,0.24835071,122520.0,122510.0,0.31818606]
[1759559930777,0.25128071,122520.0,122510.0,0.31818606]
[1759559930917,0.25128071,122520.0,122510.0,0.31830606]
[1759559942154,0.25128071,122520.0,122510.0,0.00354606]
[1759559942379,0.25128071,122520.0,122510.0,0.31826606]
[1759559947952,0.25128071,122520.0,122510.0,0.00354606]
[1759559948164,0.25128071,122520.0,122510.0,0.31830606]
[1759559992196,0.25128071,122520.0,122510.0,0.65830606]
[1759559996978,0.08312206,122520.0,122510.0,0.65830606]
[1759559997191,0.24636071,122520.0,122510.0,0.73164429]
[1759559997403,0.08312206,122520.0,122510.0,0.89489626]
[1759560001338,0.08312206,122520.0,122510.0,0.91938918]
[1759560001776,0.08312206,122520.0,122510.0,0.84605095]
[1759560002441,0.08312206,122520.0,122510.0,0.91934466]
[1759560002664,0.08312206,122520.0,122510.0,0.91934403]
[1759560003136,0.08312206,122520.0,122510.0,0.60458403]
[1759560003345,0.08312206,122520.0,122510.0,1.25854403]
[1759560004811,0.08312206,122520.0,122510.0,0.60458403]
[1759560005013,0.08312206,122520.0,122510.0,0.83442403]
[1759560005196,0.08312206,122520.0,122510.0,1.25854403]
[1759560017820,0.08312206,122520.0,122510.0,1.08457389]
[1759560017994,0.08312206,122520.0,122510.0,0.84170489]
[1759560027537,0.08312206,122520.0,122510.0,0.52774489]
[1759560027650,0.08312206,122520.0,122510.0,1.18162489]
[1759560027880,0.08312206,122520.0,122510.0,1.2841612]
[1759560036714,0.33509765,122550.0,122530.0,0.34]
[1759560036859,0.07738686,122550.0,122540.0,0.6709212]
[1759560037064,0.15482877,122550.0,122540.0,0.6546]
[1759560037264,0.08928335,122550.0,122540.0,0.6546]
[1759560037885,0.09228335,122550.0,122540.0,0.6546]
[1759560039127,0.10128335,122550.0,122540.0,0.6546]
[1759560040447,0.10128335,122550.0,122540.0,0.81781201]
[1759560040631,0.09612335,122550.0,122540.0,0.81781201]
[1759560040844,0.09612335,122550.0,122540.0,0.84230021]
[1759560041048,0.09612335,122550.0,122540.0,0.85373722]
[1759560041557,0.08412335,122550.0,122540.0,0.85373722]
[1759560041778,0.09312335,122550.0,122540.0,0.85373722]
[1759560043862,0.09312335,122550.0,122540.0,0.53913722]
[1759560044079,0.09312335,122550.0,122540.0,0.85369722]
[1759560045812,0.09312335,122550.0,122540.0,0.76897722]
[1759560046013,0.09312335,122550.0,122540.0,0.85377722]
[1759560046453,0.09312335,122550.0,122540.0,0.53913722]
[1759560046666,0.09312335,122550.0,122540.0,0.85377722]
[1759560047434,0.09312335,122550.0,122540.0,0.84234021]
[1759560048450,0.09312335,122550.0,122540.0,0.52770021]
[1759560048627,0.09312335,122550.0,122540.0,0.84234021]
[1759560050129,0.09312335,122550.0,122540.0,0.85343762]
[1759560051915,0.09312335,122550.0,122540.0,0.85339762]
[1759560052527,0.09312335,122550.0,122540.0,0.53879762]
[1759560052907,0.09312335,122550.0,122540.0,0.85339762]
[1759560054618,0.09312335,122550.0,122540.0,0.76859762]
[1759560054799,0.09312335,122550.0,122540.0,0.85339762]
[1759560055473,0.09312335,122550.0,122540.0,0.53879762]
[1759560055682,0.09508335,122550.0,122540.0,0.76855762]
[1759560055871,0.09828335,122550.0,122540.0,0.85335762]
[1759560056627,0.09828335,122550.0,122540.0,0.53879762]
[1759560056829,0.09828335,122550.0,122540.0,0.85335762]
[1759560058467,0.09828335,122550.0,122540.0,0.53879762]
[1759560058674,0.09828335,122550.0,122540.0,0.85335762]
[1759560061754,0.09828335,122550.0,122540.0,0.84226021]
[1759560065519,0.09828335,122550.0,122540.0,0.91565054]
[1759560065950,0.09508335,122550.0,122540.0,0.91565054]
[1759560066605,0.09508335,122550.0,122540.0,0.92648556]
[1759560067263,0.09312335,122550.0,122540.0,0.92648556]
[1759560070900,0.09312335,122550.0,122540.0,0.85309523]
[1759560072305,0.09312335,122550.0,122540.0,0.92643654]
[1759560075541,0.09312335,122550.0,122540.0,0.85309523]
[1759560078005,0.09312335,122550.0,122540.0,0.53853523]
[1759560078206,0.09312335,122550.0,122540.0,0.85309523]
[1759560080355,0.09312335,122550.0,122540.0,0.92637596]
[1759560081654,0.09312335,122550.0,122540.0,1.26561596]
[1759560082830,0.09312335,122550.0,122540.0,1.26311596]
[1759560085013,0.09312335,122550.0,122540.0,0.92383596]
[1759560087529,0.09509335,122550.0,122540.0,0.92383596]
[1759560087934,0.09312335,122550.0,122540.0,0.92383596]
[1759560093041,0.09514335,122550.0,122540.0,0.92383596]
[1759560093263,0.09812335,122550.0,122540.0,1.26303596]
[1759560093667,0.09514335,122550.0,122540.0,1.26303596]
[1759560093863,0.09312335,122550.0,122540.0,1.26303596]
[1759560103827,0.09514335,122550.0,122540.0,1.26303596]
[1759560103974,0.09812335,122550.0,122540.0,1.09982395]
[1759560104194,0.09812335,122550.0,122540.0,0.92383596]
[1759560105092,0.09812335,122550.0,122540.0,0.51305523]
[1759560106985,0.09812335,122550.0,122540.0,0.85305523]
[1759560108440,0.09812335,122550.0,122540.0,0.34984322]
[1759560110060,0.09812335,122550.0,122540.0,0.51305523]
[1759560110638,0.09812335,122550.0,122540.0,0.19853523]
[1759560110819,0.09812335,122550.0,122540.0,0.51305523]
[1759560114820,0.27762604,122550.0,122520.0,0.91575537]
[1759560115022,0.24931407,122540.0,122510.0,0.34743478]
[1759560115231,0.00352603,122530.0,122520.0,0.72704073]
[1759560115432,0.08866809,122530.0,122520.0,0.72704073]
[1759560115629,0.08866809,122530.0,122520.0,0.75153223]
[1759560115860,0.08866809,122530.0,122520.0,0.6782515]
[1759560116020,0.08866809,122530.0,122520.0,0.65376]
[1759560116421,0.08866809,122530.0,122520.0,0.66428691]
[1759560117349,0.08866809,122530.0,122520.0,0.82752556]
[1759560120759,0.08866809,122530.0,122520.0,0.66428691]
[1759560120989,0.08866809,122530.0,122520.0,0.82752556]
[1759560122114,0.08866809,122530.0,122520.0,0.01052691]
[1759560122337,0.08866809,122530.0,122520.0,0.3146]
[1759560122774,0.08866809,122530.0,122520.0,0.33909292]
[1759560123192,0.08866809,122530.0,122520.0,0.10929292]
[1759560123476,0.08866809,122530.0,122520.0,0.33909292]
[1759560124335,0.25189342,122530.0,122520.0,0.33909292]
[1759560125306,0.25189342,122530.0,122520.0,0.3146]
[1759560125973,0.16323865,122520.0,122510.0,0.0246961]
[1759560126178,0.24636071,122520.0,122510.0,0.31484318]
[1759560126395,0.25146071,122520.0,122510.0,0.31484318]
[1759560127427,0.25146071,122520.0,122510.0,0.31984318]
[1759560129946,0.28161261,122520.0,122510.0,0.00520318]
[1759560130081,0.28161261,122520.0,122510.0,0.31988318]
[1759560130962,0.28161261,122520.0,122510.0,0.31688318]
[1759560131179,0.28161261,122520.0,122510.0,0.31488318]
[1759560131356,0.28495548,122520.0,122510.0,0.31488318]
[1759560131688,0.28795548,122520.0,122510.0,0.31488318]
[1759560131893,0.31245374,122520.0,122510.0,0.31488318]
[1759560135422,0.1632653,122500.0,122490.0,0.02449826]
[1759560135646,0.16327863,122490.0,122480.0,0.67932]
[1759560135871,0.1632653,122500.0,122490.0,0.0848]
[1759560136097,0.1652253,122500.0,122490.0,0.0848]
[1759560136522,0.1683653,122500.0,122490.0,0.0848]
[1759560136694,0.16841433,122500.0,122490.0,0.0878]
[1759560137390,0.16841433,122500.0,122490.0,0.0898]
[1759560137816,0.23074074,122500.0,122490.0,0.0898]
[1759560139463,0.3138628,122500.0,122490.0,0.0898]
[1759560141567,0.3138628,122500.0,122490.0,0.09020654]
[1759560142506,0.1505975,122500.0,122490.0,0.09020654]
[1759560142718,0.3270268,122500.0,122490.0,0.09020654]
[1759560142965,0.3138628,122500.0,122490.0,0.09020654]
[1759560144379,0.08317109,122500.0,122490.0,0.25348517]
[1759560145193,0.08317109,122500.0,122490.0,0.27798331]
[1759560155450,0.09080705,122500.0,122490.0,0.27798331]
[1759560156300,0.08317109,122500.0,122490.0,0.27798331]
[1759560156509,0.09597793,122500.0,122490.0,0.19318331]
[1759560156717,0.09597793,122500.0,122490.0,0.50798331]
[1759560157284,0.09597867,122500.0,122490.0,0.50798331]
[1759560158304,0.08834109,122500.0,122490.0,0.50798331]
[1759560158684,0.09597952,122500.0,122490.0,0.25986468]
[1759560158897,0.09597952,122500.0,122490.0,0.34470468]
[1759560159691,0.09597952,122500.0,122490.0,0.50798331]
[1759560160469,0.09597952,122500.0,122490.0,0.42314331]
[1759560160707,0.09597952,122500.0,122490.0,0.50798331]
[1759560161118,0.09597952,122500.0,122490.0,0.19318331]
[1759560161317,0.09597952,122500.0,122490.0,0.34470468]
[1759560161579,0.09597952,122500.0,122490.0,0.02990468]
[1759560161789,0.11228352,122500.0,122490.0,0.09024654]
[1759560161994,0.27554882,122500.0,122490.0,0.32024654]
[1759560162144,0.31933676,122500.0,122490.0,0.32024654]
[1759560162777,0.15607146,122500.0,122490.0,0.32024654]
[1759560162977,0.17237546,122500.0,122490.0,0.32024654]
[1759560165209,0.11228352,122500.0,122490.0,0.32024654]
[1759560166430,0.10464509,122500.0,122490.0,0.32024654]
[1759560167884,0.10464509,122500.0,122490.0,0.3789165]
[1759560170276,0.10464509,122500.0,122490.0,0.54219513]
[1759560173293,0.10464509,122500.0,122490.0,0.48352517]
[1759560183073,0.10464509,122500.0,122490.0,0.32024654]
[1759560183279,0.10464509,122500.0,122490.0,0.48352517]
[1759560190452,0.26791039,122500.0,122490.0,0.00540654]
[1759560190674,0.25160639,122500.0,122490.0,0.32012654]
[1759560195211,0.25160639,122500.0,122490.0,0.37883242]
[1759560196051,0.25160639,122500.0,122490.0,0.06411242]
[1759560196287,0.25160639,122500.0,122490.0,0.37883242]
[1759560199984,0.08834109,122500.0,122490.0,0.54211105]
[1759560200212,0.10464509,122500.0,122490.0,0.54211105]
[1759560201762,0.08317109,122500.0,122490.0,0.48340517]
[1759560202694,0.08317109,122500.0,122490.0,0.5566859]
[1759560202907,0.08526109,122500.0,122490.0,0.5566859]
[1759560203120,0.08820109,122500.0,122490.0,0.5566859]
[1759560206448,0.08526109,122500.0,122490.0,0.5566859]
[1759560206652,0.08526109,122500.0,122490.0,0.48340517]
[1759560206825,0.08820109,122500.0,122490.0,0.48340517]
[1759560207227,0.2514694,122500.0,122480.0,0.61152378]
[1759560207427,0.16540734,122500.0,122490.0,0.14353195]
[1759560207631,0.08526109,122500.0,122490.0,0.14353195]
[1759560207831,0.26777039,122500.0,122490.0,0.05869195]
[1759560208052,0.28161829,122500.0,122490.0,0.14353195]
[1759560208530,0.28161829,122500.0,122490.0,0.37341195]
[1759560208725,0.3416184,122500.0,122490.0,0.37341195]
[1759560210553,0.3114665,122500.0,122490.0,0.37341195]
[1759560210773,0.3114665,122500.0,122490.0,0.05869195]
[1759560210921,0.3114665,122500.0,122490.0,0.37341195]
[1759560211826,0.38909051,122500.0,122490.0,0.05869195]
[1759560212014,0.16327863,122490.0,122480.0,0.05869195]
[1759560212263,0.24942069,122490.0,122480.0,0.37341195]
[1759560212461,0.25139069,122490.0,122480.0,0.37341195]
[1759560213617,0.09311206,122490.0,122480.0,0.53670391]
[1759560213809,0.27269469,122490.0,122480.0,0.53670391]
[1759560214030,0.09311206,122490.0,122480.0,0.53670391]
[1759560214202,0.10941606,122490.0,122480.0,0.53670391]
[1759560214605,0.11341606,122490.0,122480.0,0.53670391]
[1759560214808,0.27669469,122490.0,122480.0,0.53670391]
[1759560215022,0.26039069,122490.0,122480.0,0.37341195]
[1759560217657,0.26039069,122490.0,122480.0,0.37361523]
[1759560219156,0.26039069,122490.0,122480.0,0.37161523]
[1759560219373,0.09711206,122490.0,122480.0,0.53490719]
[1759560219591,0.11341606,122490.0,122480.0,0.53490719]
[1759560221854,0.11039606,122490.0,122480.0,0.53490719]
[1759560222318,0.11341606,122490.0,122480.0,0.53490719]
[1759560224133,0.11341606,122490.0,122480.0,0.47821524]
[1759560229184,0.11341606,122490.0,122480.0,0.5368593]
[1759560230100,0.10842606,122490.0,122480.0,0.5368593]
[1759560230652,0.11039606,122490.0,122480.0,0.5368593]
[1759560230862,0.11341606,122490.0,122480.0,0.5368593]
[1759560234539,0.11341606,122490.0,122480.0,0.2221393]
[1759560234779,0.11341606,122490.0,122480.0,0.4520193]
[1759560234988,0.11341606,122490.0,122480.0,0.5368593]
[1759560235554,0.09212206,122490.0,122480.0,0.5368593]
[1759560235882,0.09212206,122490.0,122480.0,0.4520193]
[1759560236097,0.09212206,122490.0,122480.0,0.5368593]
[1759560237497,0.09212206,122490.0,122480.0,0.2221393]
[1759560237654,0.09212206,122490.0,122480.0,0.5368593]
[1759560237978,0.09212206,122490.0,122480.0,0.2221393]
[1759560238176,0.09212206,122490.0,122480.0,0.5368593]
[1759560238324,0.09212206,122490.0,122480.0,0.47821524]
[1759560240422,0.09212206,122490.0,122480.0,0.50271616]
[1759560240628,0.09212206,122490.0,122480.0,0.41787616]
[1759560240774,0.09212206,122490.0,122480.0,0.50271616]
[1759560241394,0.09429206,122490.0,122480.0,0.50271616]
[1759560241595,0.09754206,122490.0,122480.0,0.50271616]
[1759560241817,0.09754206,122490.0,122480.0,0.41787616]
[1759560242018,0.09754206,122490.0,122480.0,0.50271616]
[1759560242249,0.09754206,122490.0,122480.0,0.18799616]
[1759560242464,0.09754206,122490.0,122480.0,0.50271616]
[1759560244286,0.09754206,122490.0,122480.0,0.18799616]
[1759560244486,0.09754206,122490.0,122480.0,0.50271616]
[1759560246620,0.09754206,122490.0,122480.0,0.24813196]
[1759560247614,0.09754206,122490.0,122480.0,0.47801196]
[1759560247849,0.09212206,122490.0,122480.0,0.47801196]
[1759560248028,0.09212206,122490.0,122480.0,0.53672132]
[1759560248227,0.09212206,122490.0,122480.0,0.47801196]
[1759560251618,0.09212206,122490.0,122480.0,0.16329196]
[1759560251838,0.09212206,122490.0,122480.0,0.47801196]
[1759560256614,0.09212206,122490.0,122480.0,0.55129269]
[1759560258354,0.09212206,122490.0,122480.0,0.47801196]
[1759560258601,0.09754206,122490.0,122480.0,0.47801196]
[1759560261511,0.09754206,122490.0,122480.0,0.16329196]
[1759560261718,0.09749949,122490.0,122480.0,0.47801196]
[1759560267276,0.09749949,122490.0,122480.0,0.39317196]
[1759560267429,0.09749949,122490.0,122480.0,0.47801196]
[1759560279638,0.09207949,122490.0,122480.0,0.47801196]
[1759560280081,0.00059518,122500.0,122490.0,0.16327863]
[1759560280296,0.08371724,122500.0,122490.0,0.24811863]
[1759560280502,0.08371724,122500.0,122490.0,0.47799863]
[1759560280740,0.08371724,122500.0,122490.0,0.16327863]
[1759560280957,0.08371724,122500.0,122490.0,0.50249613]
[1759560281451,0.08871724,122500.0,122490.0,0.50249613]
[1759560281664,0.08871724,122500.0,122490.0,0.18777613]
[1759560281923,0.08871724,122500.0,122490.0,0.50249613]
[1759560282115,0.08871724,122500.0,122490.0,0.41765613]
[1759560282349,0.08871724,122500.0,122490.0,0.50249613]
[1759560282557,0.09171724,122500.0,122490.0,0.50249613]
[1759560282739,0.08671724,122500.0,122490.0,0.50249613]
[1759560285839,0.09191724,122500.0,122490.0,0.56112781]
[1759560286045,0.09191724,122500.0,122490.0,0.24640781]
[1759560286230,0.09191724,122500.0,122490.0,0.56112781]
[1759560287248,0.09191724,122500.0,122490.0,0.47624781]
[1759560287453,0.09191724,122500.0,122490.0,0.56108781]
[1759560290173,0.09191724,122500.0,122490.0,0.50245613]
[1759560291025,0.08671724,122500.0,122490.0,0.50245613]
[1759560292263,0.08671724,122500.0,122490.0,0.57581092]
[1759560296001,0.08671724,122500.0,122490.0,0.5776696]
[1759560296181,0.08671724,122500.0,122490.0,0.8225796]
[1759560298896,0.08671724,122500.0,122490.0,0.82072092]
[1759560299082,0.08671724,122500.0,122490.0,0.82254178]
[1759560301244,0.00359518,122500.0,122490.0,1.16254178]
[1759560301445,0.00058708,122500.0,122490.0,3.21192978]
[1759560301744,0.00058708,122500.0,122490.0,3.13857499]
[1759560301903,0.00058708,122500.0,122490.0,3.13675413]
[1759560302246,0.00058708,122500.0,122490.0,3.23929044]
[1759560305217,0.00058708,122500.0,122490.0,2.92461044]
[1759560305373,0.00058708,122500.0,122490.0,3.57865044]
[1759560305583,0.00058708,122500.0,122490.0,3.65187556]
[1759560305789,0.00058708,122500.0,122490.0,3.54933925]
[1759560307553,0.00058708,122500.0,122490.0,3.47611413]
[1759560310627,0.00299,122520.0,122510.0,0.16325197]
[1759560310828,0.08616112,122520.0,122510.0,0.4516591]
[1759560311022,0.08813112,122520.0,122510.0,0.4516591]
[1759560311256,0.08874078,122520.0,122510.0,0.4516591]
[1759560312881,0.09074078,122520.0,122510.0,0.4516591]
[1759560314710,0.09074078,122520.0,122510.0,0.05860713]
[1759560314909,0.25397943,122520.0,122510.0,0.14340713]
[1759560315181,0.25397943,122520.0,122510.0,0.0848]
[1759560315182,0.28413133,122520.0,122510.0,0.0848]
[1759560315370,0.28413133,122520.0,122510.0,0.31464]
[1759560315942,0.28413133,122520.0,122510.0,0.31468]
[1759560319096,0.19340387,122510.0,122500.0,0.05860713]
[1759560319313,0.19340387,122510.0,122500.0,0.31472]
[1759560319314,0.27951593,122510.0,122500.0,0.31472]
[1759560319561,0.28148593,122510.0,122500.0,0.31472]
[1759560319923,0.34146891,122510.0,122500.0,0.31472]
[1759560320516,0.34146891,122510.0,122500.0,0.31572]
[1759560321981,0.34146891,122510.0,122500.0,0.08484]
[1759560322196,0.34146891,122510.0,122490.0,0.2349528]
[1759560322529,0.25535685,122510.0,122500.0,0.08484]
[1759560323046,0.25834685,122510.0,122500.0,0.31476]
[1759560323451,0.19836387,122510.0,122500.0,0.31476]
[1759560324269,0.19836387,122510.0,122500.0,0.31576]
[1759560324475,0.26046118,122510.0,122500.0,0.31576]
[1759560325849,0.34358324,122510.0,122500.0,0.31576]
[1759560332322,0.61198006,122510.0,122500.0,0.31576]
[1759560335997,0.61198006,122510.0,122500.0,0.001]
[1759560336197,0.61198006,122510.0,122500.0,0.31572]
[1759560340789,0.28189241,122510.0,122500.0,0.31572]
[1759560341800,0.11864044,122510.0,122500.0,0.4789853]
[1759560341967,0.13494444,122510.0,122500.0,0.4789853]
[1759560345393,0.13494444,122510.0,122500.0,0.53759243]
[1759560347968,0.29819641,122510.0,122500.0,0.53759243]
[1759560348170,0.28189241,122510.0,122500.0,0.53759243]
[1759560348298,0.28953808,122510.0,122500.0,0.53759243]
[1759560350338,0.12628611,122510.0,122500.0,0.53759243]
[1759560350470,0.14259011,122510.0,122500.0,0.53759243]
[1759560350911,0.13494444,122510.0,122500.0,0.53759243]
[1759560353162,0.40334126,122510.0,122500.0,0.53759243]
[1759560353363,0.38703726,122510.0,122500.0,0.53759243]
[1759560355892,0.38703726,122510.0,122500.0,0.22287243]
[1759560356112,0.55028923,122510.0,122500.0,0.37440713]
[1759560357025,0.55028923,122510.0,122500.0,0.05960713]
[1759560357280,0.55028923,122510.0,122500.0,0.37440713]
[1759560360316,0.55028923,122510.0,122500.0,0.05960713]
[1759560360515,0.55793304,122510.0,122500.0,0.37440713]
[1759560360711,0.55793304,122510.0,122500.0,0.05960713]
[1759560360997,0.55793304,122510.0,122500.0,0.37440713]
[1759560361907,0.55793304,122510.0,122500.0,0.53767243]
[1759560362142,0.39468107,122510.0,122500.0,0.53767243]
[1759560364311,0.39468107,122510.0,122500.0,0.53763243]
[1759560365627,0.39468107,122510.0,122500.0,0.28952713]
[1759560365859,0.39468107,122510.0,122500.0,0.37436713]
[1759560366735,0.55793304,122510.0,122500.0,0.05960713]
[1759560366951,0.55793304,122510.0,122500.0,0.37436713]
[1759560367678,0.39468107,122510.0,122500.0,0.37436713]
[1759560368464,0.39468115,122510.0,122500.0,0.37436713]
[1759560369673,0.39468115,122510.0,122500.0,0.53763243]
[1759560369874,0.38703726,122510.0,122500.0,0.53763243]
[1759560375372,0.55028923,122510.0,122500.0,0.37432713]
[1759560376089,0.38703726,122510.0,122500.0,0.37432713]
[1759560376524,0.38703726,122510.0,122500.0,0.05960713]
[1759560376755,0.38703726,122510.0,122500.0,0.37432713]
[1759560377347,0.38703726,122510.0,122500.0,0.53759243]
[1759560382687,0.38703726,122510.0,122500.0,0.37432713]
[1759560383965,0.38703726,122510.0,122500.0,0.53759243]
[1759560385672,0.38703726,122510.0,122500.0,0.37432713]
[1759560386757,0.38703726,122510.0,122500.0,0.53759243]
[1759560388198,0.38703726,122510.0,122500.0,0.37432713]
[1759560388635,0.55028923,122510.0,122500.0,0.37432713]
[1759560388995,0.38703726,122510.0,122500.0,0.37432713]
[1759560390285,0.55028923,122510.0,122500.0,0.37432713]
[1759560391789,0.38703726,122510.0,122500.0,0.37432713]
[1759560392022,0.38703726,122510.0,122500.0,0.53759243]
[1759560394170,0.38703726,122510.0,122500.0,0.37432713]
[1759560397494,0.38703726,122510.0,122500.0,0.53759243]
[1759560406131,0.35389536,122510.0,122500.0,0.53759243]
[1759560406367,0.35389536,122510.0,122500.0,0.37432713]
[1759560406572,0.35706536,122510.0,122500.0,0.53759243]
[1759560408327,0.35192536,122510.0,122500.0,0.53759243]
[1759560409303,0.35387536,122510.0,122500.0,0.53759243]
[1759560409787,0.35704536,122510.0,122500.0,0.53759243]
[1759560413936,0.35192536,122510.0,122500.0,0.53759243]
[1759560414149,0.35192536,122510.0,122500.0,0.4789853]
[1759560414664,0.35192536,122510.0,122500.0,0.5034831]
[1759560424534,0.35192536,122510.0,122500.0,0.4186031]
[1759560424739,0.35192536,122510.0,122500.0,0.5034431]
[1759560437679,0.35707536,122510.0,122500.0,0.5034431]
[1759560438293,0.35398536,122510.0,122500.0,0.5034431]
[1759560438681,0.35398536,122510.0,122500.0,0.1887631]
[1759560438885,0.35707536,122510.0,122500.0,0.5034431]
[1759560439572,0.35707536,122510.0,122500.0,0.56213566]
[1759560442308,0.35707536,122510.0,122500.0,0.56213713]
[1759560443312,0.35707536,122510.0,122500.0,0.5034431]
[1759560443525,0.35707536,122510.0,122500.0,0.1887631]
[1759560443687,0.35707536,122510.0,122500.0,0.56214375]
[1759560443873,0.35707536,122510.0,122500.0,0.08419845]
[1759560444082,0.35707536,122510.0,122500.0,0.39887845]
[1759560444294,0.35707536,122510.0,122500.0,0.3401778]
[1759560446759,0.35707536,122510.0,122500.0,0.5034431]
[1759560455463,0.52032733,122510.0,122500.0,0.5034431]
[1759560456564,0.52032733,122510.0,122500.0,0.3401778]
[1759560457221,0.52032733,122510.0,122500.0,0.5034431]
[1759560457893,0.52032733,122510.0,122500.0,0.3401778]
[1759560459130,0.52032733,122510.0,122500.0,0.5034431]
[1759560459326,0.52032733,122510.0,122500.0,0.3401778]
[1759560460174,0.52032733,122510.0,122500.0,0.5034431]
[1759560463262,0.52032733,122510.0,122500.0,0.2481053]
[1759560464438,0.52032733,122510.0,122500.0,0.4779453]
[1759560465063,0.52032733,122510.0,122500.0,0.31468]
[1759560466878,0.54482757,122510.0,122500.0,0.31468]
[1759560471344,0.1632653,122500.0,122490.0,0.24437017]
[1759560471592,0.24638736,122500.0,122490.0,0.55905017]
[1759560471802,0.25178062,122500.0,122490.0,0.55905017]
[1759560472639,0.25178062,122500.0,122490.0,0.56105017]
[1759560473079,0.25178062,122500.0,122490.0,0.56405017]
[1759560473906,0.24968062,122500.0,122490.0,0.56405017]
[1759560474119,0.24869062,122500.0,122490.0,0.56405017]
[1759560474317,0.25178062,122500.0,122490.0,0.56405017]
[1759560475590,0.24869062,122500.0,122490.0,0.56405017]
[1759560475982,0.25178062,122500.0,122490.0,0.56405017]
[1759560481052,0.24869062,122500.0,122490.0,0.56405017]
[1759560481495,0.08332532,122500.0,122490.0,0.56405017]
[1759560481715,0.08332532,122500.0,122490.0,0.63730908]
[1759560483023,0.08332532,122500.0,122490.0,0.32262908]
[1759560483684,0.08332532,122500.0,122490.0,0.97666908]
[1759560489329,0.08332532,122500.0,122490.0,0.89182908]
[1759560489601,0.08332532,122500.0,122490.0,0.97666908]
[1759560490167,0.08332532,122500.0,122490.0,0.32262915]
[1759560490366,0.08332532,122500.0,122490.0,0.97666915]
[1759560495406,0.08332532,122500.0,122490.0,0.63730915]
[1759560497956,0.08332532,122500.0,122490.0,0.55246915]
[1759560498166,0.08332532,122500.0,122490.0,0.63730915]
[1759560499999,0.08332532,122500.0,122490.0,0.55242915]
[1759560500242,0.08332532,122500.0,122490.0,0.63726915]
[1759560503704,0.08332532,122500.0,122490.0,0.32262915]
[1759560503908,0.08332532,122500.0,122490.0,0.63726915]
[1759560507902,0.08332532,122500.0,122490.0,0.55242915]
[1759560508113,0.08332532,122500.0,122490.0,0.63726915]
[1759560508561,0.08332532,122500.0,122490.0,0.43457772]
[1759560508772,0.08332532,122500.0,122490.0,0.4932776]
[1759560509021,0.08332532,122500.0,122490.0,0.51777472]
[1759560509714,0.08532532,122500.0,122490.0,0.20313472]
[1759560509932,0.08834532,122500.0,122490.0,0.20313472]